[Event "57th Biel Festival MTO 2024"]
[White "Frayna,Janelle Mae"]
[Black "Saine,Zachary"]
[Site "Biel"]
[Round "4.47"]
[Annotator "RC"]
[Result "1-0"]
[Date "2024.07.18"]
[WhiteElo "2164"]
[BlackElo "2035"]
[PlyCount "95"]
[TimeControl "60"]

1. Nf3 {[%emt 0:0:3]} d5 {[%emt 0:1:26]} 2. c4 {[%emt 0:2:18]} e6 {[%emt 0:0:15]} 3. g3 {[%emt 0:0:57]} Nf6 {[%emt 0:0:17]} 4. Bg2 {[%emt 0:0:8]} Be7 {[%emt 0:0:11]} 5. O-O {[%emt 0:1:1]} O-O {[%emt 0:0:21]} 6. b3 {[%emt 0:1:40]} d4 {[%emt 0:0:44]} 7. e3 {[%emt 0:2:7]} c5 {[%emt 0:0:33]} 8. exd4 {[%emt 0:0:56]} cxd4 {[%emt 0:0:6]} 9. d3 {[%emt 0:2:15]} Nc6 {[%emt 0:1:19]} 10. Re1 {[%emt 0:0:3]} a5 {[%emt 0:4:34]} 11. Ne5 {[%emt 0:5:16]} Nxe5 {[%emt 0:7:34]} 12. Rxe5 {[%emt 0:0:5]} Nd7 {[%emt 0:7:11]} 13. Re1 {[%emt 0:1:9]} Bb4 {[%emt 0:6:50]} 14. Bd2 {[%emt 0:2:14]} Bd6 {[%emt 0:0:49]} 15. Bc1 {[%emt 0:4:18]} e5 {[%emt 0:9:40]} 16. Na3 {[%emt 0:2:35]} Bb4 {[%emt 0:9:55]} 17. Re2 {[%emt 0:0:22]} Re8 {[%emt 0:1:7]} 18. Nb5 {[%emt 0:0:59]} Nc5 {[%emt 0:1:41]} 19. a3 {[%emt 0:6:18]} Bc3 {[%emt 0:1:19]} 20. Nxc3 {[%emt 0:3:46]} dxc3 {[%emt 0:0:5]} 21. Be3 {[%emt 0:0:4]} Ne6 {[%emt 0:2:2]} 22. Qe1 {[%emt 0:6:58]} Nd4 {[%emt 0:9:10]} 23. Bxd4 {[%emt 0:0:9]} Qxd4 {[%emt 0:0:5]} 24. Rc1 {[%emt 0:12:44]} Bf5 {[%emt 0:27:4]} 25. Rxc3 {[%emt 0:20:18]} Rab8 {[%emt 0:5:42]} 26. Be4 {[%emt 0:1:4]} Bg4 {[%emt 0:0:18]} 27. Rec2 {[%emt 0:2:4]} f5 {[%emt 0:0:28]} 28. Bd5+ {[%emt 0:0:31]} Kh8 {[%emt 0:0:5]} 29. Qe3 {[%emt 0:2:17]} b6 {[%emt 0:8:4]} 30. b4 {[%emt 0:3:23]} Bh3 {[%emt 0:1:8]} 31. Rc1 {[%emt 0:0:54]} a4 {[%emt 0:1:15]} 32. Qxd4 {[%emt 0:5:8]} exd4 {[%emt 0:0:4]} 33. R3c2 {[%emt 0:0:2]} Re5 {[%emt 0:0:49]} 34. Bg2 {[%emt 0:1:28]} Bxg2 {[%emt 0:1:17]} 35. Kxg2 {[%emt 0:0:4]} Rc8 {[%emt 0:1:32]} 36. c5 {[%emt 0:0:45]} b5 {[%emt 0:0:51]} 37. c6 {[%emt 0:0:12]} g6 {[%emt 0:0:21]} 38. Rc5 {[%emt 0:1:2]} Rxc5 {[%emt 0:0:5]} 39. Rxc5 {[%emt 0:0:3]} Kg7 {[%emt 0:0:25]} 40. c7 {[%emt 0:2:29]} Kf6 {[%emt 0:0:12]} 41. h4 {[%emt 0:52:16]} Ke6 {[%emt 0:6:41]} 42. Kf3 {[%emt 0:0:0]} Kd6 {[%emt 0:2:12]} 43. Kf4 {[%emt 0:0:0]} h6 {[%emt 0:3:36]} 44. h5 {[%emt 0:0:0]} gxh5 {[%emt 0:0:25]} 45. Kxf5 {[%emt 0:0:0]} Kd7 {[%emt 0:0:6]} 46. Kg6 {[%emt 0:0:0]} Rg8+ {[%emt 0:0:5]} 47. Kf7 {[%emt 0:0:0]} Rc8 {[%emt 0:0:26]} 48. f4 {[%emt 0:0:0]} 1-0

[Event "57th Biel Festival MTO 2024"]
[White "Malli,Suvirr"]
[Black "Chen,Muxi"]
[Site "Biel"]
[Round "4.48"]
[Annotator "RC"]
[Result "0-1"]
[Date "2024.07.18"]
[WhiteElo "2147"]
[BlackElo "1954"]
[PlyCount "138"]
[TimeControl "60"]

1. e4 {[%emt 0:0:3]} c5 {[%emt 0:0:48]} 2. Nf3 {[%emt 0:0:5]} Nc6 {[%emt 0:0:4]} 3. d4 {[%emt 0:0:7]} cxd4 {[%emt 0:0:5]} 4. Nxd4 {[%emt 0:0:5]} Nf6 {[%emt 0:0:4]} 5. Nc3 {[%emt 0:0:11]} e5 {[%emt 0:0:10]} 6. Ndb5 {[%emt 0:0:4]} d6 {[%emt 0:0:6]} 7. Bg5 {[%emt 0:0:6]} a6 {[%emt 0:0:4]} 8. Na3 {[%emt 0:0:7]} b5 {[%emt 0:0:4]} 9. Nab1 {[%emt 0:0:6]} Be7 {[%emt 0:4:8]} 10. Bxf6 {[%emt 0:0:53]} Bxf6 {[%emt 0:0:37]} 11. a4 {[%emt 0:0:5]} b4 {[%emt 0:3:37]} 12. Nd5 {[%emt 0:0:6]} Bg5 {[%emt 0:1:25]} 13. Bc4 {[%emt 0:0:33]} O-O {[%emt 0:3:42]} 14. O-O {[%emt 0:0:12]} Kh8 {[%emt 0:15:28]} 15. c3 {[%emt 0:0:33]} f5 {[%emt 0:33:30]} 16. cxb4 {[%emt 0:6:26]} fxe4 {[%emt 0:9:36]} 17. Nbc3 {[%emt 0:1:57]} Bf5 {[%emt 0:3:10]} 18. a5 {[%emt 0:20:39]} Nd4 {[%emt 0:3:55]} 19. Ne3 {[%emt 0:8:2]} Bf4 {[%emt 0:7:33]} 20. Nxf5 {[%emt 0:22:7]} Rxf5 {[%emt 0:0:19]} 21. g3 {[%emt 0:2:20]} Nf3+ {[%emt 0:12:59]} 22. Kg2 {[%emt 0:1:10]} Nd2 {[%emt 0:0:21]} 23. Bd5 {[%emt 0:5:43]} Rb8 {[%emt 0:3:37]} 24. Nxe4 {[%emt 0:11:55]} Nxf1 {[%emt 0:1:7]} 25. gxf4 {[%emt 0:0:9]} Rxb4 {[%emt 0:0:49]} 26. Qxf1 {[%emt 0:9:10]} exf4 {[%emt 0:0:14]} 27. Bc6 {[%emt 0:3:18]} d5 {[%emt 0:0:31]} 28. Nd2 {[%emt 0:3:50]} f3+ {[%emt 0:0:28]} 29. Kh1 {[%emt 0:0:14]} Qg5 {[%emt 0:0:56]} 30. Re1 {[%emt 0:3:44]} h6 {[%emt 0:1:46]} 31. Re3 {[%emt 0:6:27]} Rxb2 {[%emt 0:0:47]} 32. Nxf3 {[%emt 0:0:57]} Qf6 {[%emt 0:0:12]} 33. Qd3 {[%emt 0:3:39]} Rxf2 {[%emt 0:2:39]} 34. Bxd5 {[%emt 0:0:41]} Qg6 {[%emt 0:1:0]} 35. Re8+ {[%emt 0:1:34]} Qxe8 {[%emt 0:0:4]} 36. Qxf5 {[%emt 0:0:3]} Qe1+ {[%emt 0:0:47]} 37. Nxe1 {[%emt 0:0:4]} Rxf5 {[%emt 0:0:3]} 38. Bg2 {[%emt 0:0:42]} Rxa5 {[%emt 0:0:24]} 39. Kg1 {[%emt 0:0:6]} Ra2 {[%emt 0:0:38]} 40. Nd3 {[%emt 0:0:57]} a5 {[%emt 0:0:33]} 41. Nf4 {[%emt 0:17:27]} g5 {[%emt 0:8:2]} 42. Nd5 {[%emt 0:0:54]} Rc2 {[%emt 0:9:50]} 43. Nb6 {[%emt 0:1:0]} Kg7 {[%emt 0:1:25]} 44. Bd5 {[%emt 0:8:0]} Kf6 {[%emt 0:6:50]} 45. Na4 {[%emt 0:2:32]} Ke5 {[%emt 0:3:19]} 46. Bf7 {[%emt 0:1:11]} Kd4 {[%emt 0:1:36]} 47. Be8 {[%emt 0:1:4]} Ke3 {[%emt 0:1:51]} 48. Bf7 {[%emt 0:1:2]} Kf3 {[%emt 0:3:59]} 49. Bd5+ {[%emt 0:0:9]} Kg4 {[%emt 0:1:13]} 50. Be6+ {[%emt 0:0:17]} Kh4 {[%emt 0:0:20]} 51. Bb3 {[%emt 0:2:31]} Re2 {[%emt 0:1:49]} 52. Bc4 {[%emt 0:0:32]} Re4 {[%emt 0:0:52]} 53. Bb5 {[%emt 0:0:13]} g4 {[%emt 0:0:55]} 54. Kg2 {[%emt 0:4:12]} h5 {[%emt 0:0:28]} 55. Kg1 {[%emt 0:4:5]} Kg5 {[%emt 0:1:5]} 56. Kg2 {[%emt 0:0:22]} Re3 {[%emt 0:0:19]} 57. Kf2 {[%emt 0:0:43]} Rh3 {[%emt 0:1:21]} 58. Kg2 {[%emt 0:0:6]} Re3 {[%emt 0:0:19]} 59. Kf2 {[%emt 0:0:6]} Rh3 {[%emt 0:0:7]} 60. Kg2 {[%emt 0:0:6]} h4 {[%emt 0:0:13]} 61. Nc5 {[%emt 0:18:3]} Re3 {[%emt 0:15:53]} 62. Bd7 {[%emt 0:1:30]} Re2+ {[%emt 0:1:6]} 63. Kg1 {[%emt 0:0:20]} h3 {[%emt 0:1:4]} 64. Nd3 {[%emt 0:3:45]} Rg2+ {[%emt 0:0:26]} 65. Kf1 {[%emt 0:0:33]} Rxh2 {[%emt 0:0:56]} 66. Nf2 {[%emt 0:0:7]} Kf4 {[%emt 0:8:40]} 67. Nxg4 {[%emt 0:0:24]} Rd2 {[%emt 0:0:24]} 68. Nf6 {[%emt 0:1:28]} h2 {[%emt 0:0:21]} 69. Bc6 {[%emt 0:0:10]} Rd6 {[%emt 0:3:10]} 0-1

[Event "57th Biel Festival MTO 2024"]
[White "Pisan,Kai"]
[Black "Asllani,Dorian"]
[Site "Biel"]
[Round "4.49"]
[Annotator "RC"]
[Result "1/2-1/2"]
[Date "2024.07.18"]
[WhiteElo "1950"]
[BlackElo "2154"]
[PlyCount "108"]
[TimeControl "60"]

1. d4 {[%emt 0:0:4]} d5 {[%emt 0:0:11]} 2. c4 {[%emt 0:0:6]} e6 {[%emt 0:0:6]} 3. Nf3 {[%emt 0:0:6]} Nf6 {[%emt 0:0:6]} 4. g3 {[%emt 0:0:7]} Be7 {[%emt 0:0:10]} 5. Bg2 {[%emt 0:0:6]} Ne4 {[%emt 0:0:9]} 6. O-O {[%emt 0:1:8]} f5 {[%emt 0:0:10]} 7. Nc3 {[%emt 0:6:36]} c6 {[%emt 0:0:58]} 8. Ne5 {[%emt 0:2:0]} Nd7 {[%emt 0:0:44]} 9. Nxd7 {[%emt 0:23:16]} Bxd7 {[%emt 0:1:23]} 10. cxd5 {[%emt 0:3:57]} exd5 {[%emt 0:8:28]} 11. f3 {[%emt 0:12:9]} Nxc3 {[%emt 0:12:22]} 12. bxc3 {[%emt 0:0:26]} O-O {[%emt 0:2:10]} 13. e4 {[%emt 0:0:46]} Qa5 {[%emt 0:6:35]} 14. Bd2 {[%emt 0:11:53]} Qa6 {[%emt 0:7:7]} 15. e5 {[%emt 0:5:31]} Be6 {[%emt 0:1:31]} 16. Qc1 {[%emt 0:6:39]} Ba3 {[%emt 0:3:56]} 17. Qc2 {[%emt 0:2:38]} c5 {[%emt 0:9:36]} 18. Be3 {[%emt 0:6:57]} c4 {[%emt 0:3:48]} 19. Bc1 {[%emt 0:1:16]} Be7 {[%emt 0:11:38]} 20. a4 {[%emt 0:1:39]} Rab8 {[%emt 0:11:12]} 21. Qa2 {[%emt 0:8:21]} Qa5 {[%emt 0:12:53]} 22. Ba3 {[%emt 0:0:54]} Bxa3 {[%emt 0:5:0]} 23. Qxa3 {[%emt 0:0:10]} f4 {[%emt 0:0:5]} 24. Rfb1 {[%emt 0:3:50]} Qd8 {[%emt 0:1:27]} 25. Qc1 {[%emt 0:3:0]} Qg5 {[%emt 0:1:23]} 26. Rb2 {[%emt 0:1:2]} Bd7 {[%emt 0:1:12]} 27. Re2 {[%emt 0:1:5]} Rbe8 {[%emt 0:0:50]} 28. a5 {[%emt 0:1:28]} Re6 {[%emt 0:0:42]} 29. Bh3 {[%emt 0:1:8]} Re7 {[%emt 0:0:9]} 30. Bxd7 {[%emt 0:0:30]} Rxd7 {[%emt 0:0:1]} 31. Rg2 {[%emt 0:0:23]} Qh5 {[%emt 0:0:59]} 32. g4 {[%emt 0:0:50]} Qh3 {[%emt 0:1:51]} 33. Qf1 {[%emt 0:0:26]} h5 {[%emt 0:0:49]} 34. Re1 {[%emt 0:1:7]} Re8 {[%emt 0:1:25]} 35. Qf2 {[%emt 0:1:56]} Re6 {[%emt 0:0:29]} 36. gxh5 {[%emt 0:0:46]} Qxh5 {[%emt 0:0:9]} 37. Rg4 {[%emt 0:0:19]} Qf5 {[%emt 0:0:2]} 38. Qd2 {[%emt 0:1:1]} Rf7 {[%emt 0:0:23]} 39. Kh1 {[%emt 0:0:59]} Rg6 {[%emt 0:5:38]} 40. Rxg6 {[%emt 0:1:43]} Qxg6 {[%emt 0:0:2]} 41. Rg1 {[%emt 0:13:22]} Qf5 {[%emt 0:4:11]} 42. Qe2 {[%emt 0:9:34]} Rc7 {[%emt 0:4:57]} 43. Qg2 {[%emt 0:6:34]} Qd3 {[%emt 0:20:46]} 44. Qg4 {[%emt 0:4:59]} Qxc3 {[%emt 0:1:9]} 45. Qe6+ {[%emt 0:0:48]} Kh8 {[%emt 0:0:51]} 46. Qe8+ {[%emt 0:9:47]} Kh7 {[%emt 0:0:30]} 47. Qh5+ {[%emt 0:1:45]} Kg8 {[%emt 0:0:18]} 48. Qg4 {[%emt 0:2:42]} Qxd4 {[%emt 0:9:44]} 49. Qe6+ {[%emt 0:0:27]} Rf7 {[%emt 0:3:17]} 50. Qe8+ {[%emt 0:1:33]} Rf8 {[%emt 0:0:32]} 51. Qe7 Rf7 {[%emt 0:0:2]} 52. Qd8+ {[%emt 0:0:1]} Rf8 {[%emt 0:0:1]} 53. Qg5 Rf7 {[%emt 0:0:2]} 54. e6 Rf8 {[%emt 0:0:1]} 1/2-1/2

[Event "57th Biel Festival MTO 2024"]
[White "Cordes,Jule"]
[Black "Nurgaliyeva,Zarina"]
[Site "Biel"]
[Round "4.50"]
[Annotator "RC"]
[Result "0-1"]
[Date "2024.07.18"]
[WhiteElo "1900"]
[BlackElo "2145"]
[PlyCount "98"]
[TimeControl "60"]

1. d4 {[%emt 0:0:3]} Nf6 {[%emt 0:3:50]} 2. c4 {[%emt 0:0:9]} e6 {[%emt 0:0:15]} 3. Nc3 {[%emt 0:0:14]} Bb4 {[%emt 0:0:33]} 4. Qc2 {[%emt 0:0:24]} d5 {[%emt 0:0:32]} 5. cxd5 {[%emt 0:0:25]} Qxd5 {[%emt 0:0:15]} 6. e3 {[%emt 0:0:43]} c5 {[%emt 0:2:24]} 7. Bd2 {[%emt 0:0:51]} Bxc3 {[%emt 0:1:7]} 8. Bxc3 {[%emt 0:0:45]} Nc6 {[%emt 0:1:56]} 9. dxc5 {[%emt 0:19:49]} Qxc5 {[%emt 0:5:54]} 10. Rc1 {[%emt 0:1:20]} Qe7 {[%emt 0:2:0]} 11. Nf3 {[%emt 0:5:44]} Bd7 {[%emt 0:0:29]} 12. Be2 {[%emt 0:2:11]} O-O {[%emt 0:2:14]} 13. a3 {[%emt 0:9:38]} Rac8 {[%emt 0:8:24]} 14. Qb1 {[%emt 0:3:13]} e5 {[%emt 0:6:2]} 15. O-O {[%emt 0:8:30]} Bg4 {[%emt 0:4:52]} 16. Rfe1 {[%emt 0:9:4]} Rfd8 {[%emt 0:7:25]} 17. b4 {[%emt 0:2:55]} a6 {[%emt 0:2:5]} 18. Ba1 {[%emt 0:4:21]} Nd5 {[%emt 0:5:57]} 19. h3 {[%emt 0:7:36]} Be6 {[%emt 0:8:56]} 20. Red1 {[%emt 0:12:1]} f6 {[%emt 0:4:12]} 21. Nd2 {[%emt 0:1:44]} Qf7 {[%emt 0:5:32]} 22. Ne4 {[%emt 0:6:9]} Qe7 {[%emt 0:8:22]} 23. Nc5 {[%emt 0:1:6]} Bf7 {[%emt 0:0:27]} 24. Bg4 {[%emt 0:2:2]} Ra8 {[%emt 0:0:42]} 25. Qc2 {[%emt 0:11:9]} Na7 {[%emt 0:1:9]} 26. Bb2 {[%emt 0:0:41]} Nb5 {[%emt 0:1:16]} 27. Qe2 {[%emt 0:0:31]} Nd6 {[%emt 0:0:33]} 28. Qc2 {[%emt 0:0:37]} Nb6 {[%emt 0:0:34]} 29. a4 {[%emt 0:0:30]} Nbc4 {[%emt 0:2:4]} 30. Ba1 {[%emt 0:0:11]} a5 {[%emt 0:1:21]} 31. bxa5 {[%emt 0:0:42]} Rxa5 {[%emt 0:0:29]} 32. Nd3 {[%emt 0:0:35]} Rda8 {[%emt 0:1:25]} 33. Be2 {[%emt 0:0:34]} Rxa4 {[%emt 0:1:1]} 34. Bf1 {[%emt 0:0:26]} b5 {[%emt 0:2:57]} 35. Nc5 {[%emt 0:0:29]} Ra2 {[%emt 0:2:49]} 36. Qc3 {[%emt 0:0:16]} Rc8 {[%emt 0:1:50]} 37. Nb3 {[%emt 0:0:46]} Ne4 {[%emt 0:0:55]} 38. Qd3 {[%emt 0:0:31]} Nxf2 {[%emt 0:3:24]} 39. Qd7 {[%emt 0:0:28]} Qxd7 {[%emt 0:0:41]} 40. Rxd7 {[%emt 0:0:2]} Ne4 {[%emt 0:0:31]} 41. Rcd1 {[%emt 0:8:16]} Raa8 {[%emt 0:2:35]} 42. Be2 {[%emt 0:2:19]} Nxe3 {[%emt 0:1:25]} 43. R1d3 {[%emt 0:3:44]} Bxb3 {[%emt 0:0:19]} 44. Rxe3 {[%emt 0:0:20]} Rxa1+ {[%emt 0:0:12]} 45. Kh2 {[%emt 0:0:3]} Nc5 {[%emt 0:0:47]} 46. Rc3 {[%emt 0:4:44]} Nxd7 {[%emt 0:0:14]} 47. Rxc8+ {[%emt 0:0:15]} Kf7 {[%emt 0:0:4]} 48. Bxb5 {[%emt 0:0:40]} Be6 {[%emt 0:0:5]} 49. Rh8 {[%emt 0:1:0]} Nf8 {[%emt 0:0:14]} 0-1

[Event "57th Biel Festival MTO 2024"]
[White "Pouly,Ivan"]
[Black "Harish,Neeraj"]
[Site "Biel"]
[Round "4.51"]
[Annotator "RC"]
[Result "0-1"]
[Date "2024.07.18"]
[WhiteElo "1958"]
[BlackElo "2123"]
[PlyCount "90"]
[TimeControl "60"]

1. c4 {[%emt 0:0:1]} e5 {[%emt 0:0:12]} 2. Nc3 {[%emt 0:0:6]} Bb4 {[%emt 0:0:18]} 3. Qc2 {[%emt 0:0:8]} Nf6 {[%emt 0:0:17]} 4. g3 {[%emt 0:0:12]} Nc6 {[%emt 0:0:48]} 5. e3 {[%emt 0:0:19]} Bxc3 {[%emt 0:1:21]} 6. Qxc3 {[%emt 0:0:10]} d5 {[%emt 0:0:13]} 7. d3 {[%emt 0:1:58]} O-O {[%emt 0:1:43]} 8. Bg2 {[%emt 0:0:57]} d4 {[%emt 0:1:40]} 9. Qb3 {[%emt 0:0:51]} dxe3 {[%emt 0:7:6]} 10. Bxe3 {[%emt 0:5:6]} Nd4 {[%emt 0:2:22]} 11. Qc3 {[%emt 0:1:55]} Bf5 {[%emt 0:0:50]} 12. h3 {[%emt 0:3:52]} Qe7 {[%emt 0:4:35]} 13. O-O-O {[%emt 0:6:29]} Nd7 {[%emt 0:4:37]} 14. Bxd4 {[%emt 0:14:11]} exd4 {[%emt 0:0:7]} 15. Qxd4 {[%emt 0:0:29]} Nc5 {[%emt 0:2:38]} 16. Be4 {[%emt 0:15:35]} Rad8 {[%emt 0:5:17]} 17. Qe3 {[%emt 0:2:41]} Nxe4 {[%emt 0:1:59]} 18. dxe4 {[%emt 0:0:14]} Qe6 {[%emt 0:8:25]} 19. Ne2 {[%emt 0:9:25]} Bxe4 {[%emt 0:0:44]} 20. Rhe1 {[%emt 0:1:12]} Qxc4+ {[%emt 0:1:1]} 21. Nc3 {[%emt 0:0:16]} Rxd1+ {[%emt 0:0:11]} 22. Rxd1 {[%emt 0:0:30]} Bg6 {[%emt 0:0:18]} 23. Qxa7 {[%emt 0:4:38]} b5 {[%emt 0:2:50]} 24. Qd4 {[%emt 0:0:51]} Qe6 {[%emt 0:0:15]} 25. b3 {[%emt 0:4:16]} Qf5 {[%emt 0:6:44]} 26. Rd2 {[%emt 0:0:56]} h6 {[%emt 0:2:25]} 27. g4 {[%emt 0:4:59]} Qf3 {[%emt 0:0:20]} 28. Qe3 {[%emt 0:0:19]} Qc6 {[%emt 0:1:26]} 29. Kb2 {[%emt 0:0:56]} b4 {[%emt 0:5:37]} 30. Nd5 {[%emt 0:3:48]} Re8 {[%emt 0:2:45]} 31. Qd4 {[%emt 0:0:20]} Re1 {[%emt 0:0:54]} 32. Ne7+ {[%emt 0:2:34]} Rxe7 {[%emt 0:0:6]} 33. Qxb4 {[%emt 0:0:5]} Re8 {[%emt 0:1:41]} 34. f4 {[%emt 0:1:3]} Qf6+ {[%emt 0:4:17]} 35. Qd4 {[%emt 0:0:10]} Re2 {[%emt 0:0:20]} 36. Ka3 {[%emt 0:1:6]} Qxd4 {[%emt 0:5:24]} 37. Rxd4 {[%emt 0:0:8]} Bb1 {[%emt 0:0:4]} 38. Rd8+ {[%emt 0:0:14]} Kh7 {[%emt 0:0:6]} 39. Rd7 {[%emt 0:0:5]} Rxa2+ {[%emt 0:0:30]} 40. Kb4 {[%emt 0:0:5]} Ra7 {[%emt 0:2:26]} 41. Kc5 {[%emt 0:50:22]} Ba2 {[%emt 0:58:9]} 42. Rxf7 {[%emt 0:15:36]} Bxb3 {[%emt 0:0:7]} 43. Rd7 {[%emt 0:1:13]} Ra4 {[%emt 0:2:12]} 44. f5 {[%emt 0:7:11]} Rc4+ {[%emt 0:0:52]} 45. Kb5 {[%emt 0:0:1]} Ba4+ {[%emt 0:0:7]} 0-1

[Event "57th Biel Festival MTO 2024"]
[White "Gemelli,Romain"]
[Black "Matsumura,Cocoro"]
[Site "Biel"]
[Round "4.52"]
[Annotator "RC"]
[Result "1-0"]
[Date "2024.07.18"]
[WhiteElo "2101"]
[BlackElo "2032"]
[PlyCount "83"]
[TimeControl "60"]

1. d4 {[%emt 0:0:6]} d5 {[%emt 0:1:27]} 2. c4 {[%emt 0:0:6]} e6 {[%emt 0:0:4]} 3. Nf3 {[%emt 0:0:5]} Nf6 {[%emt 0:0:4]} 4. Bg5 {[%emt 0:0:8]} dxc4 {[%emt 0:0:16]} 5. Qa4+ {[%emt 0:0:5]} Nbd7 {[%emt 0:1:44]} 6. e4 {[%emt 0:0:6]} Be7 {[%emt 0:0:29]} 7. Nbd2 {[%emt 0:0:6]} a6 {[%emt 0:3:54]} 8. Bxc4 {[%emt 0:0:36]} Rb8 {[%emt 0:0:23]} 9. Qc2 {[%emt 0:1:7]} b5 {[%emt 0:0:59]} 10. Be2 {[%emt 0:1:52]} Bb7 {[%emt 0:1:29]} 11. a4 {[%emt 0:1:14]} b4 {[%emt 0:11:19]} 12. Bxf6 {[%emt 0:11:43]} Bxf6 {[%emt 0:6:14]} 13. Nb3 {[%emt 0:2:15]} O-O {[%emt 0:3:39]} 14. O-O {[%emt 0:9:38]} Be7 {[%emt 0:7:46]} 15. Na5 {[%emt 0:8:58]} b3 {[%emt 0:2:15]} 16. Qd3 {[%emt 0:1:16]} Ba8 {[%emt 0:1:35]} 17. Nd2 {[%emt 0:2:44]} Nf6 {[%emt 0:4:27]} 18. Naxb3 {[%emt 0:7:57]} Nxe4 {[%emt 0:1:55]} 19. Nxe4 {[%emt 0:0:7]} Bxe4 {[%emt 0:0:12]} 20. Qxe4 {[%emt 0:0:4]} Rxb3 {[%emt 0:0:4]} 21. Bxa6 {[%emt 0:1:23]} Rb4 {[%emt 0:1:15]} 22. Rfd1 {[%emt 0:8:5]} c5 {[%emt 0:2:56]} 23. a5 {[%emt 0:0:11]} cxd4 {[%emt 0:1:43]} 24. Bd3 {[%emt 0:4:51]} g6 {[%emt 0:5:19]} 25. a6 {[%emt 0:0:28]} Qa8 {[%emt 0:13:27]} 26. a7 {[%emt 0:8:45]} Bc5 {[%emt 0:21:38]} 27. Ra2 {[%emt 0:1:27]} Rb7 {[%emt 0:2:19]} 28. Rda1 {[%emt 0:6:27]} Bxa7 {[%emt 0:0:51]} 29. Ba6 {[%emt 0:6:2]} Rd7 {[%emt 0:0:51]} 30. Qxa8 {[%emt 0:0:49]} Rxa8 {[%emt 0:0:0]} 31. Bd3 {[%emt 0:2:34]} f5 {[%emt 0:0:31]} 32. f4 {[%emt 0:1:49]} Rc7 {[%emt 0:3:11]} 33. Kf2 {[%emt 0:1:27]} g5 {[%emt 0:1:3]} 34. g3 {[%emt 0:0:15]} h5 {[%emt 0:5:53]} 35. b4 {[%emt 0:3:50]} h4 {[%emt 0:3:3]} 36. b5 {[%emt 0:0:57]} Rb7 {[%emt 0:0:11]} 37. Ra6 {[%emt 0:0:39]} hxg3+ {[%emt 0:2:6]} 38. hxg3 {[%emt 0:1:58]} Rc7 {[%emt 0:2:10]} 39. b6 {[%emt 0:0:43]} Rc3 {[%emt 0:0:28]} 40. Ke2 {[%emt 0:0:24]} gxf4 {[%emt 0:0:29]} 41. gxf4 {[%emt 0:50:27]} e5 {[%emt 0:50:20]} 42. fxe5 {[%emt 0:2:36]} 1-0

[Event "57th Biel Festival MTO 2024"]
[White "Erne,Raphael"]
[Black "Woltery,Nicolai"]
[Site "Biel"]
[Round "4.53"]
[Annotator "RC"]
[Result "1/2-1/2"]
[Date "2024.07.18"]
[WhiteElo "2102"]
[BlackElo "2016"]
[PlyCount "80"]
[TimeControl "60"]

1. c4 {[%emt 0:0:3]} Nf6 {[%emt 0:0:49]} 2. g3 {[%emt 0:0:12]} c5 {[%emt 0:0:18]} 3. Bg2 {[%emt 0:0:16]} g6 {[%emt 0:0:35]} 4. Nc3 {[%emt 0:0:49]} Bg7 {[%emt 0:0:22]} 5. Nf3 {[%emt 0:0:44]} Nc6 {[%emt 0:0:10]} 6. O-O {[%emt 0:0:12]} O-O {[%emt 0:0:7]} 7. d4 {[%emt 0:0:16]} cxd4 {[%emt 0:0:20]} 8. Nxd4 {[%emt 0:0:7]} Nxd4 {[%emt 0:0:14]} 9. Qxd4 {[%emt 0:0:7]} d6 {[%emt 0:0:9]} 10. Qd3 {[%emt 0:0:16]} Bf5 {[%emt 0:1:14]} 11. e4 {[%emt 0:1:13]} Be6 {[%emt 0:2:20]} 12. b3 {[%emt 0:3:25]} Nd7 {[%emt 0:2:24]} 13. Bb2 {[%emt 0:4:18]} a5 {[%emt 0:5:40]} 14. Qe2 {[%emt 0:6:8]} Nc5 {[%emt 0:4:9]} 15. Nd5 {[%emt 0:12:23]} Bxb2 {[%emt 0:2:41]} 16. Qxb2 {[%emt 0:0:7]} Bxd5 {[%emt 0:11:38]} 17. exd5 {[%emt 0:5:35]} a4 {[%emt 0:12:28]} 18. b4 {[%emt 0:8:56]} Qb6 {[%emt 0:9:10]} 19. Qa3 {[%emt 0:8:26]} Nd7 {[%emt 0:3:46]} 20. Rfe1 {[%emt 0:5:52]} Rfe8 {[%emt 0:4:59]} 21. Rac1 {[%emt 0:2:52]} Qc7 {[%emt 0:4:56]} 22. c5 {[%emt 0:4:1]} Nf6 {[%emt 0:5:32]} 23. c6 {[%emt 0:9:27]} bxc6 {[%emt 0:12:29]} 24. Rxc6 {[%emt 0:2:54]} Qb7 {[%emt 0:3:5]} 25. Qc3 {[%emt 0:6:14]} a3 {[%emt 0:9:32]} 26. Rc7 {[%emt 0:10:58]} Nxd5 {[%emt 0:0:41]} 27. Bxd5 {[%emt 0:11:17]} Qxd5 {[%emt 0:0:8]} 28. Qc2 {[%emt 0:1:39]} e6 {[%emt 0:3:11]} 29. Rd1 {[%emt 0:2:36]} Qe5 {[%emt 0:0:39]} 30. Qb3 {[%emt 0:1:23]} Rf8 {[%emt 0:3:44]} 31. b5 {[%emt 0:1:16]} Qb2 {[%emt 0:0:6]} 32. Rb1 {[%emt 0:0:40]} Qe5 {[%emt 0:5:11]} 33. b6 {[%emt 0:0:17]} d5 {[%emt 0:0:7]} 34. Qc2 {[%emt 0:1:35]} Rab8 {[%emt 0:1:17]} 35. Ra7 {[%emt 0:0:35]} Qd6 {[%emt 0:1:19]} 36. b7 {[%emt 0:0:42]} d4 {[%emt 0:0:38]} 37. Qb3 {[%emt 0:0:22]} Rfd8 {[%emt 0:1:37]} 38. Qxa3 {[%emt 0:0:11]} Qxa3 {[%emt 0:0:42]} 39. Rxa3 {[%emt 0:0:4]} d3 {[%emt 0:0:13]} 40. Rab3 {[%emt 0:1:24]} d2 {[%emt 0:0:56]} 1/2-1/2

[Event "57th Biel Festival MTO 2024"]
[White "Altantuya,Boldbaatar"]
[Black "Liu,Kimberly"]
[Site "Biel"]
[Round "4.54"]
[Annotator "RC"]
[Result "1-0"]
[Date "2024.07.18"]
[WhiteElo "2107"]
[BlackElo "1941"]
[PlyCount "61"]
[TimeControl "60"]

1. d4 {[%emt 0:0:16]} Nf6 {[%emt 0:0:5]} 2. c4 {[%emt 0:0:5]} e6 {[%emt 0:0:5]} 3. Nf3 {[%emt 0:0:12]} d5 {[%emt 0:0:8]} 4. Nc3 {[%emt 0:0:10]} Bb4 {[%emt 0:0:10]} 5. a3 {[%emt 0:0:51]} Bxc3+ {[%emt 0:0:31]} 6. bxc3 {[%emt 0:0:6]} O-O {[%emt 0:2:4]} 7. e3 {[%emt 0:1:0]} c5 {[%emt 0:8:22]} 8. Bd3 {[%emt 0:0:35]} dxc4 {[%emt 0:2:5]} 9. Bxc4 {[%emt 0:0:6]} b6 {[%emt 0:4:46]} 10. Qe2 {[%emt 0:3:52]} Bb7 {[%emt 0:1:52]} 11. O-O {[%emt 0:1:18]} Nbd7 {[%emt 0:2:26]} 12. Bd3 {[%emt 0:2:12]} Ne4 {[%emt 0:16:1]} 13. Bb2 {[%emt 0:0:15]} cxd4 {[%emt 0:6:9]} 14. exd4 {[%emt 0:4:22]} Nef6 {[%emt 0:8:15]} 15. c4 {[%emt 0:10:15]} Qc7 {[%emt 0:3:12]} 16. Rac1 {[%emt 0:4:56]} Qf4 {[%emt 0:10:17]} 17. Nd2 {[%emt 0:6:48]} Rac8 {[%emt 0:5:46]} 18. f3 {[%emt 0:14:52]} Rfd8 {[%emt 0:11:24]} 19. Ne4 {[%emt 0:2:18]} Ba6 {[%emt 0:2:40]} 20. Rc3 {[%emt 0:15:33]} Nb8 {[%emt 0:4:15]} 21. Bc1 {[%emt 0:7:43]} Qc7 {[%emt 0:3:32]} 22. Nxf6+ {[%emt 0:4:28]} gxf6 {[%emt 0:0:2]} 23. Qe4 {[%emt 0:8:39]} Bb7 {[%emt 0:0:7]} 24. Qxh7+ {[%emt 0:1:4]} Kf8 {[%emt 0:0:1]} 25. a4 {[%emt 0:6:47]} Na6 {[%emt 0:2:24]} 26. Ba3+ {[%emt 0:3:21]} Nc5 {[%emt 0:0:20]} 27. dxc5 {[%emt 0:0:37]} bxc5 {[%emt 0:0:2]} 28. Qh4 {[%emt 0:4:5]} Ke7 {[%emt 0:3:15]} 29. Rb3 {[%emt 0:1:19]} Ba6 {[%emt 0:0:35]} 30. Bb2 {[%emt 0:2:26]} e5 {[%emt 0:1:31]} 31. Bxe5 {[%emt 0:0:18]} 1-0